[Event "CZE-ch 2020"]
[Site "Pilsen"]
[Date "2020.08.26"]
[Round "4.21"]
[White "Svanda, Ondrej"]
[Black "Pokrupa, Marek"]
[Result "1-0"]
[ECO "C09"]
[WhiteElo "2250"]
[BlackElo "2164"]
[Annotator "ChessBase"]
[PlyCount "129"]
[EventDate "2020.08.23"]
[EventType "swiss"]
[EventCountry "CZE"]
[SourceTitle "playchess.com"]
[Source "ChessBase"]
[SourceQuality "1"]
[TimeControl "40/5400+30:1800+30"]

1. e4 {[%emt 0:00:00]} e6 {[%emt 0:01:36]} 2. d4 {[%emt 0:00:00]} d5 {[%emt 0:00:03]} 3. Nd2 {[%emt 0:00:00]} c5 {[%emt 0:01:00]} 4. Ngf3 {[%emt 0:01:25]} Nc6 {[%emt 0:03:00]} 5. exd5 {[%emt 0:00:16]} exd5 {[%emt 0:00:02]} 6. Bb5 {[%emt 0:00:32]} Bd6 {[%emt 0:00:06]} 7. O-O {[%emt 0:01:31]} Nge7 {[%emt 0:00:04]} 8. dxc5 {[%emt 0:03:01]} Bxc5 {[%emt 0:00:05]} 9. Nb3 {[%emt 0:00:05]} Bb6 {[%emt 0:00:57]} 10. Re1 {[%emt 0:04:48]} O-O {[%emt 0:01:50]} 11. Bg5 {[%emt 0:02:12]} Qd6 {[%emt 0:05:49]} 12. c4 {[%emt 0:11:44]} Be6 {[%emt 0:18:30]} 13. Rc1 {[%emt 0:06:46]} Bd8 {[%emt 0:11:28]} 14. c5 {[%emt 0:09:44]} Qc7 {[%emt 0:09:34]} 15. Nfd4 {[%emt 0:11:11]} Bd7 {[%emt 0:04:46]} 16. Bd3 {[%emt 0:15:57]} a6 {[%emt 0:08:56]} 17. Bh4 {[%emt 0:08:02]} Qc8 {[%emt 0:10:56]} 18. Bg3 {[%emt 0:01:42]} Nxd4 {[%emt 0:06:47]} 19. Nxd4 {[%emt 0:00:02]} Nc6 {[%emt 0:00:11]} 20. Qh5 {[%emt 0:08:25]} f5 {[%emt 0:00:07]} 21. Nxc6 {[%emt 0:03:02]} Qxc6 {[%emt 0:00:02]} 22. Bd6 {[%emt 0:00:28]} Rf7 {[%emt 0:00:34]} 23. Qf3 {[%emt 0:05:21]} Ba5 {[%emt 0:09:46]} 24. Re5 {[%emt 0:00:54]} Rc8 {[%emt 0:01:33]} 25. Qxd5 {[%emt 0:01:08]} Qxd5 {[%emt 0:03:56]} 26. Rxd5 {[%emt 0:00:02]} Bc7 {[%emt 0:00:24]} 27. Bc4 {[%emt 0:00:54]} Be6 {[%emt 0:00:12]} 28. Bxc7 {[%emt 0:01:44]} Bxd5 {[%emt 0:00:26]} 29. Bxd5 {[%emt 0:00:03]} Rcxc7 {[%emt 0:00:04]} 30. g3 {[%emt 0:01:50]} Kf8 {[%emt 0:00:02]} 31. Bxf7 {[%emt 0:00:03]} Kxf7 {[%emt 0:00:05]} 32. Kg2 {[%emt 0:00:56]} Ke6 {[%emt 0:00:09]} 33. Kf3 {[%emt 0:00:02]} Kd5 {[%emt 0:00:16]} 34. Kf4 {[%emt 0:00:08]} a5 {[%emt 0:02:02]} 35. f3 {[%emt 0:01:44]} g6 {[%emt 0:00:39]} 36. Kg5 {[%emt 0:00:37]} Kd4 {[%emt 0:00:17]} 37. Rc3 {[%emt 0:00:04]} a4 {[%emt 0:01:01]} 38. h4 {[%emt 0:00:22]} a3 {[%emt 0:00:12]} 39. Rxa3 {[%emt 0:00:05]} Rxc5 {[%emt 0:00:05]} 40. Rb3 {[%emt 0:00:12]} Rc7 {[%emt 0:00:35]} 41. h5 {[%emt 0:30:01]} gxh5 {[%emt 0:09:04]} 42. Kxf5 {[%emt 0:00:00]} Rc5+ {[%emt 0:00:10]} 43. Ke6 {[%emt 0:00:00]} Rc6+ {[%emt 0:08:25]} 44. Kf5 {[%emt 0:00:00]} Rc5+ {[%emt 0:00:33]} 45. Kf6 {[%emt 0:00:00]} Rc6+ {[%emt 0:00:16]} 46. Kg5 {[%emt 0:00:00]} Rg6+ {[%emt 0:04:27]} 47. Kh4 {[%emt 0:00:00]} b6 {[%emt 0:04:07]} 48. f4 {[%emt 0:00:00]} Ke4 {[%emt 0:00:16]} 49. Kxh5 {[%emt 0:00:00]} Rd6 {[%emt 0:00:55]} 50. Rb4+ {[%emt 0:00:00]} Kf5 {[%emt 0:00:15]} 51. g4+ {[%emt 0:00:00]} Kf6 {[%emt 0:00:04]} 52. Rb5 {[%emt 0:00:00]} Kg7 {[%emt 0:00:26]} 53. g5 {[%emt 0:00:00]} h6 {[%emt 0:01:47]} 54. f5 {[%emt 0:00:00]} hxg5 {[%emt 0:00:13]} 55. Kxg5 {[%emt 0:00:00]} Kf7 {[%emt 0:00:15]} 56. a4 {[%emt 0:00:00]} Rc6 {[%emt 0:01:23]} 57. b4 {[%emt 0:00:00]} Rd6 {[%emt 0:00:06]} 58. a5 {[%emt 0:00:00]} bxa5 {[%emt 0:00:11]} 59. bxa5 {[%emt 0:00:00]} Ra6 {[%emt 0:02:01]} 60. f6 {[%emt 0:00:00]} Ra7 {[%emt 0:02:15]} 61. Kf5 {[%emt 0:00:00]} Rd7 {[%emt 0:04:24]} 62. a6 {[%emt 0:00:00]} Kg8 {[%emt 0:00:33]} 63. Kg6 {[%emt 0:00:00]} Rg7+ {[%emt 0:00:02]} 64. Kf5 {[%emt 0:00:00]} Ra7 {[%emt 0:00:16]} 65. Rb8+ {[%emt 0:00:00]} 1-0

[Event "CZE-ch 2020"]
[Site "Pilsen"]
[Date "2020.08.26"]
[Round "4.22"]
[White "Nytra, Ondrej"]
[Black "Jurek, Josef"]
[Result "1-0"]
[ECO "C02"]
[WhiteElo "1925"]
[BlackElo "2234"]
[Annotator "ChessBase"]
[PlyCount "49"]
[EventDate "2020.08.23"]
[EventType "swiss"]
[EventCountry "CZE"]
[SourceTitle "playchess.com"]
[Source "ChessBase"]
[SourceQuality "1"]
[TimeControl "40/5400+30:1800+30"]

1. e4 {[%emt 0:00:00]} e6 {[%emt 0:00:00]} 2. d4 {[%emt 0:00:00]} d5 {[%emt 0:00:00]} 3. e5 {[%emt 0:00:00]} c5 {[%emt 0:00:21]} 4. c3 {[%emt 0:00:00]} Nc6 {[%emt 0:00:19]} 5. Nf3 {[%emt 0:00:07]} Bd7 {[%emt 0:00:33]} 6. Be2 {[%emt 0:00:07]} Nge7 {[%emt 0:00:33]} 7. O-O {[%emt 0:00:19]} Ng6 {[%emt 0:01:02]} 8. g3 {[%emt 0:00:12]} Be7 {[%emt 0:03:50]} 9. h4 {[%emt 0:00:06]} O-O {[%emt 0:01:25]} 10. h5 {[%emt 0:00:05]} Nh8 {[%emt 0:00:30]} 11. dxc5 {[%emt 0:00:09]} Bxc5 {[%emt 0:01:57]} 12. c4 {[%emt 0:00:08]} dxc4 {[%emt 0:12:02]} 13. Bxc4 {[%emt 0:00:40]} Qe8 {[%emt 0:08:08]} 14. Nc3 {[%emt 0:02:20]} Rd8 {[%emt 0:05:55]} 15. Ne4 {[%emt 0:09:15]} Be7 {[%emt 0:14:02]} 16. Bd2 {[%emt 0:03:22]} f6 {[%emt 0:02:42]} 17. exf6 {[%emt 0:12:12]} Bxf6 {[%emt 0:00:16]} 18. Nxf6+ {[%emt 0:00:59]} gxf6 {[%emt 0:02:40]} 19. Bh6 {[%emt 0:01:15]} Qxh5 {[%emt 0:12:19]} 20. Bxf8 {[%emt 0:01:22]} Kxf8 {[%emt 0:00:44]} 21. Qd6+ {[%emt 0:00:34]} Ke8 {[%emt 0:04:27]} 22. Bxe6 {[%emt 0:06:43]} Qxf3 {[%emt 0:04:21]} 23. Bd5 {[%emt 0:01:36]} Qh5 {[%emt 0:08:15]} 24. Rae1+ {[%emt 0:00:46]} Ne5 {[%emt 0:01:23]} 25. Qxf6 {[%emt 0:00:08]} 1-0

[Event "CZE-ch 2020"]
[Site "Pilsen"]
[Date "2020.08.26"]
[Round "4.23"]
[White "Vojta, Jakub"]
[Black "Simek, Petr"]
[Result "1-0"]
[ECO "B31"]
[WhiteElo "2093"]
[BlackElo "2324"]
[Annotator "ChessBase"]
[PlyCount "63"]
[EventDate "2020.08.23"]
[EventType "swiss"]
[EventCountry "CZE"]
[SourceTitle "playchess.com"]
[Source "ChessBase"]
[SourceQuality "1"]
[TimeControl "40/5400+30:1800+30"]

1. e4 {[%emt 0:00:00]} c5 {[%emt 0:00:25]} 2. Nf3 {[%emt 0:00:38]} Nc6 {[%emt 0:00:10]} 3. Bb5 {[%emt 0:00:05]} g6 {[%emt 0:00:07]} 4. O-O {[%emt 0:00:04]} Bg7 {[%emt 0:00:07]} 5. Re1 {[%emt 0:00:04]} e5 {[%emt 0:00:12]} 6. b4 {[%emt 0:00:03]} Nxb4 {[%emt 0:00:14]} 7. Bb2 {[%emt 0:00:03]} Qc7 {[%emt 0:00:52]} 8. d4 {[%emt 0:00:21]} a6 {[%emt 0:07:22]} 9. Bc4 {[%emt 0:04:35]} cxd4 {[%emt 0:11:48]} 10. Bb3 {[%emt 0:00:01]} Nc6 {[%emt 0:07:43]} 11. c3 {[%emt 0:00:58]} Nge7 {[%emt 0:01:44]} 12. cxd4 {[%emt 0:03:29]} exd4 {[%emt 0:00:26]} 13. Nbd2 {[%emt 0:03:24]} O-O {[%emt 0:00:35]} 14. Ba3 {[%emt 0:08:55]} b5 {[%emt 0:03:58]} 15. Rc1 {[%emt 0:01:56]} Qb8 {[%emt 0:22:14]} 16. e5 {[%emt 0:01:51]} b4 {[%emt 0:00:18]} 17. Bb2 {[%emt 0:00:09]} d6 {[%emt 0:00:43]} 18. e6 {[%emt 0:06:49]} Bxe6 {[%emt 0:10:18]} 19. Bxe6 {[%emt 0:00:46]} fxe6 {[%emt 0:00:05]} 20. Rxe6 {[%emt 0:07:05]} Ra7 {[%emt 0:01:00]} 21. Ne4 {[%emt 0:06:03]} d5 {[%emt 0:08:55]} 22. Nc5 {[%emt 0:03:40]} Rf5 {[%emt 0:06:50]} 23. Nxd4 {[%emt 0:04:06]} Nxd4 {[%emt 0:01:50]} 24. Bxd4 {[%emt 0:00:05]} Bxd4 {[%emt 0:00:13]} 25. Qxd4 {[%emt 0:00:06]} Qf4 {[%emt 0:00:08]} 26. Qb2 {[%emt 0:03:06]} a5 {[%emt 0:07:59]} 27. Rce1 {[%emt 0:01:45]} Kf7 {[%emt 0:00:31]} 28. Nd3 {[%emt 0:02:05]} Qh6 {[%emt 0:03:35]} 29. Ne5+ {[%emt 0:01:34]} Kg8 {[%emt 0:00:19]} 30. Ng4 {[%emt 0:02:28]} Qh4 {[%emt 0:02:39]} 31. Rxe7 {[%emt 0:00:21]} Rxe7 {[%emt 0:00:07]} 32. Rxe7 {[%emt 0:00:05]} 1-0

[Event "CZE-ch 2020"]
[Site "Pilsen"]
[Date "2020.08.26"]
[Round "4.24"]
[White "Stinka, Jakub"]
[Black "Pychova, Nela"]
[Result "1-0"]
[ECO "E11"]
[WhiteElo "2299"]
[BlackElo "2159"]
[Annotator "ChessBase"]
[PlyCount "67"]
[EventDate "2020.08.23"]
[EventType "swiss"]
[EventCountry "CZE"]
[SourceTitle "playchess.com"]
[Source "ChessBase"]
[SourceQuality "1"]
[TimeControl "40/5400+30:1800+30"]

1. d4 {[%emt 0:00:00]} Nf6 {[%emt 0:00:00]} 2. c4 {[%emt 0:00:16]} e6 {[%emt 0:00:00]} 3. Nf3 {[%emt 0:00:09]} Bb4+ {[%emt 0:00:22]} 4. Nbd2 {[%emt 0:01:32]} O-O {[%emt 0:07:21]} 5. a3 {[%emt 0:00:21]} Bxd2+ {[%emt 0:01:15]} 6. Bxd2 {[%emt 0:00:34]} d6 {[%emt 0:02:31]} 7. Bg5 {[%emt 0:00:30]} Nbd7 {[%emt 0:00:36]} 8. e3 {[%emt 0:00:56]} e5 {[%emt 0:03:32]} 9. Be2 {[%emt 0:07:29]} Re8 {[%emt 0:05:54]} 10. O-O {[%emt 0:02:15]} h6 {[%emt 0:01:07]} 11. Bh4 {[%emt 0:03:03]} Qe7 {[%emt 0:03:03]} 12. Qc2 {[%emt 0:07:06]} c5 {[%emt 0:09:40]} 13. d5 {[%emt 0:17:16]} Nf8 {[%emt 0:06:37]} 14. Nd2 {[%emt 0:13:10]} Ng6 {[%emt 0:07:07]} 15. Bxf6 {[%emt 0:06:22]} Qxf6 {[%emt 0:01:56]} 16. Bd3 {[%emt 0:01:02]} Nf8 {[%emt 0:05:56]} 17. f4 {[%emt 0:03:38]} exf4 {[%emt 0:02:39]} 18. Rxf4 {[%emt 0:02:51]} Qe7 {[%emt 0:01:40]} 19. Raf1 {[%emt 0:04:20]} f6 {[%emt 0:11:11]} 20. Re4 {[%emt 0:08:59]} Qf7 {[%emt 0:01:34]} 21. Rxe8 {[%emt 0:00:28]} Qxe8 {[%emt 0:00:01]} 22. Ne4 {[%emt 0:00:16]} Qe7 {[%emt 0:02:50]} 23. Qf2 {[%emt 0:00:57]} f5 {[%emt 0:11:50]} 24. Ng3 {[%emt 0:01:07]} g6 {[%emt 0:01:08]} 25. Qf4 {[%emt 0:02:39]} Qg5 {[%emt 0:02:38]} 26. Qf3 {[%emt 0:04:21]} Nd7 {[%emt 0:03:25]} 27. h4 {[%emt 0:04:51]} Qe7 {[%emt 0:03:18]} 28. Qf4 {[%emt 0:02:04]} Qe5 {[%emt 0:03:39]} 29. h5 {[%emt 0:01:41]} Qxf4 {[%emt 0:00:56]} 30. exf4 {[%emt 0:00:18]} Nf8 {[%emt 0:00:33]} 31. hxg6 {[%emt 0:00:11]} Nxg6 {[%emt 0:00:11]} 32. Bxf5 {[%emt 0:01:00]} Ne7 {[%emt 0:00:49]} 33. Be6+ {[%emt 0:01:59]} Kf8 {[%emt 0:00:30]} 34. f5 {[%emt 0:00:19]} 1-0

[Event "CZE-ch 2020"]
[Site "Pilsen"]
[Date "2020.08.26"]
[Round "4.26"]
[White "Taus, Martin"]
[Black "Kawulok, Marek"]
[Result "0-1"]
[ECO "C55"]
[WhiteElo "2142"]
[BlackElo "2226"]
[Annotator "ChessBase"]
[PlyCount "68"]
[EventDate "2020.08.23"]
[EventType "swiss"]
[EventCountry "CZE"]
[SourceTitle "playchess.com"]
[Source "ChessBase"]
[SourceQuality "1"]
[TimeControl "40/5400+30:1800+30"]

1. e4 {[%emt 0:00:00]} e5 {[%emt 0:00:00]} 2. Nf3 {[%emt 0:00:00]} Nc6 {[%emt 0:00:00]} 3. d4 {[%emt 0:00:00]} exd4 {[%emt 0:00:00]} 4. Bc4 {[%emt 0:00:03]} Nf6 {[%emt 0:00:03]} 5. e5 {[%emt 0:00:20]} d5 {[%emt 0:00:18]} 6. Bb5 {[%emt 0:00:30]} Ne4 {[%emt 0:00:55]} 7. Nxd4 {[%emt 0:02:57]} Bd7 {[%emt 0:00:04]} 8. Bxc6 {[%emt 0:03:33]} bxc6 {[%emt 0:00:06]} 9. O-O {[%emt 0:01:09]} Bc5 {[%emt 0:02:04]} 10. f3 {[%emt 0:00:53]} Ng5 {[%emt 0:00:12]} 11. Be3 {[%emt 0:00:16]} Bb6 {[%emt 0:00:42]} 12. f4 {[%emt 0:04:59]} Ne4 {[%emt 0:00:48]} 13. Nd2 {[%emt 0:00:29]} Nxd2 {[%emt 0:05:28]} 14. Qxd2 {[%emt 0:02:22]} c5 {[%emt 0:00:21]} 15. Nf3 {[%emt 0:05:11]} Bc6 {[%emt 0:09:10]} 16. c3 {[%emt 0:18:35]} d4 {[%emt 0:14:18]} 17. cxd4 {[%emt 0:00:56]} Bxf3 {[%emt 0:00:09]} 18. Rxf3 {[%emt 0:01:40]} cxd4 {[%emt 0:00:07]} 19. Bf2 {[%emt 0:00:24]} Qd5 {[%emt 0:00:34]} 20. a4 {[%emt 0:09:46]} a5 {[%emt 0:14:02]} 21. Qd3 {[%emt 0:09:17]} O-O {[%emt 0:12:25]} 22. Rh3 {[%emt 0:03:28]} g6 {[%emt 0:03:37]} 23. Bh4 {[%emt 0:15:34]} c5 {[%emt 0:01:03]} 24. Bf6 {[%emt 0:10:23]} Bd8 {[%emt 0:09:29]} 25. Qg3 {[%emt 0:03:26]} Bxf6 {[%emt 0:00:10]} 26. exf6 {[%emt 0:00:06]} Qf5 {[%emt 0:03:06]} 27. Qh4 {[%emt 0:03:07]} h5 {[%emt 0:00:40]} 28. Rg3 {[%emt 0:00:51]} Ra6 {[%emt 0:02:41]} 29. Rg5 {[%emt 0:00:50]} Qxf6 {[%emt 0:00:09]} 30. Qxh5 {[%emt 0:00:22]} Re8 {[%emt 0:05:21]} 31. f5 {[%emt 0:01:11]} Qe5 {[%emt 0:02:13]} 32. fxg6 {[%emt 0:01:06]} Qe3+ {[%emt 0:00:09]} 33. Kf1 {[%emt 0:00:29]} Rf6+ {[%emt 0:02:50]} 34. Rf5 {[%emt 0:00:05]} fxg6 0-1

[Event "CZE-ch 2020"]
[Site "Pilsen"]
[Date "2020.08.26"]
[Round "4.27"]
[White "Gnojek, Petr"]
[Black "Bartos, Jan"]
[Result "1-0"]
[ECO "A84"]
[WhiteElo "2225"]
[BlackElo "2131"]
[Annotator "ChessBase"]
[PlyCount "123"]
[EventDate "2020.08.23"]
[EventType "swiss"]
[EventCountry "CZE"]
[SourceTitle "playchess.com"]
[Source "ChessBase"]
[SourceQuality "1"]
[TimeControl "40/5400+30:1800+30"]

1. d4 {[%emt 0:00:00]} e6 {[%emt 0:00:00]} 2. c4 {[%emt 0:00:00]} f5 {[%emt 0:00:00]} 3. Nc3 {[%emt 0:00:08]} Nf6 {[%emt 0:00:00]} 4. Nf3 {[%emt 0:00:29]} Bb4 {[%emt 0:00:00]} 5. Qc2 {[%emt 0:01:43]} b6 {[%emt 0:01:14]} 6. a3 {[%emt 0:01:56]} Bxc3+ {[%emt 0:00:21]} 7. Qxc3 {[%emt 0:00:07]} Bb7 {[%emt 0:00:16]} 8. e3 {[%emt 0:01:14]} Ne4 {[%emt 0:00:59]} 9. Qc2 {[%emt 0:00:22]} a5 {[%emt 0:00:44]} 10. b3 {[%emt 0:02:30]} O-O {[%emt 0:00:31]} 11. Be2 {[%emt 0:01:32]} d6 {[%emt 0:01:14]} 12. O-O {[%emt 0:02:17]} Nd7 {[%emt 0:01:43]} 13. Bb2 {[%emt 0:02:26]} Qe7 {[%emt 0:21:00]} 14. Rad1 {[%emt 0:09:09]} Ng5 {[%emt 0:04:28]} 15. d5 {[%emt 0:13:49]} Nxf3+ {[%emt 0:00:41]} 16. Bxf3 {[%emt 0:00:12]} e5 {[%emt 0:00:11]} 17. g3 {[%emt 0:02:00]} e4 {[%emt 0:07:54]} 18. Bg2 {[%emt 0:00:05]} Qg5 {[%emt 0:00:50]} 19. f4 {[%emt 0:08:17]} exf3 {[%emt 0:06:02]} 20. Rxf3 {[%emt 0:00:05]} Rae8 {[%emt 0:00:35]} 21. Rdf1 {[%emt 0:00:46]} Bc8 {[%emt 0:17:35]} 22. Bd4 {[%emt 0:03:19]} Nf6 {[%emt 0:01:16]} 23. Rf4 {[%emt 0:02:57]} Ng4 {[%emt 0:05:58]} 24. e4 {[%emt 0:03:29]} fxe4 {[%emt 0:01:11]} 25. Qxe4 {[%emt 0:04:20]} Qh5 {[%emt 0:09:03]} 26. Rxf8+ {[%emt 0:07:49]} Rxf8 {[%emt 0:00:04]} 27. h4 {[%emt 0:02:00]} Rxf1+ {[%emt 0:03:46]} 28. Bxf1 {[%emt 0:00:07]} Ne5 {[%emt 0:02:57]} 29. Be2 {[%emt 0:03:34]} Qf5 {[%emt 0:04:08]} 30. Qxf5 {[%emt 0:01:14]} Bxf5 {[%emt 0:00:02]} 31. Kf2 {[%emt 0:01:42]} Bc2 {[%emt 0:01:46]} 32. Bxe5 {[%emt 0:02:12]} dxe5 {[%emt 0:00:04]} 33. b4 {[%emt 0:00:04]} axb4 {[%emt 0:00:13]} 34. axb4 {[%emt 0:00:04]} Kf7 {[%emt 0:00:24]} 35. Ke3 {[%emt 0:00:03]} h6 {[%emt 0:00:29]} 36. Bd3 {[%emt 0:00:59]} Bb3 {[%emt 0:00:46]} 37. Ke4 {[%emt 0:00:41]} Kf6 {[%emt 0:00:09]} 38. c5 {[%emt 0:00:04]} bxc5 {[%emt 0:01:14]} 39. bxc5 {[%emt 0:00:06]} Ba4 {[%emt 0:00:44]} 40. c6 {[%emt 0:02:41]} g6 {[%emt 0:05:55]} 41. Ke3 {[%emt 0:35:50]} g5 {[%emt 0:05:50]} 42. hxg5+ {[%emt 0:00:00]} Kxg5 {[%emt 0:00:59]} 43. Be4 {[%emt 0:00:00]} h5 {[%emt 0:01:32]} 44. Bf3 {[%emt 0:00:00]} Bc2 {[%emt 0:01:06]} 45. Be2 {[%emt 0:00:00]} Bf5 {[%emt 0:01:09]} 46. Bd3 {[%emt 0:00:00]} Bc8 {[%emt 0:00:43]} 47. Bh7 {[%emt 0:00:00]} Bh3 {[%emt 0:05:08]} 48. Ke4 {[%emt 0:00:00]} Kf6 {[%emt 0:00:10]} 49. Ke3 {[%emt 0:00:00]} Bg2 {[%emt 0:01:54]} 50. Be4 {[%emt 0:00:00]} Bh3 {[%emt 0:00:08]} 51. Bf3 {[%emt 0:00:00]} Kg5 {[%emt 0:03:21]} 52. Ke4 {[%emt 0:00:00]} h4 {[%emt 0:00:13]} 53. gxh4+ {[%emt 0:00:00]} Kxh4 {[%emt 0:00:05]} 54. Kxe5 {[%emt 0:00:00]} Kg5 {[%emt 0:00:07]} 55. d6 {[%emt 0:00:00]} cxd6+ {[%emt 0:00:21]} 56. Kxd6 {[%emt 0:00:00]} Kf6 {[%emt 0:00:42]} 57. Bd5 {[%emt 0:00:00]} Bg4 {[%emt 0:00:35]} 58. c7 {[%emt 0:00:00]} Bc8 {[%emt 0:00:32]} 59. Bc6 {[%emt 0:00:00]} Ba6 {[%emt 0:10:51]} 60. Bd7 {[%emt 0:00:00]} Kf7 {[%emt 0:00:10]} 61. Kc6 {[%emt 0:00:00]} Ke7 {[%emt 0:00:11]} 62. Bh3 {[%emt 0:00:00]} 1-0

[Event "CZE-ch 2020"]
[Site "Pilsen"]
[Date "2020.08.26"]
[Round "4.28"]
[White "Eret, Jonas"]
[Black "Folk, Petr"]
[Result "1/2-1/2"]
[ECO "A01"]
[WhiteElo "2219"]
[BlackElo "2122"]
[Annotator "RC"]
[PlyCount "100"]
[EventDate "2020.08.23"]
[EventType "swiss"]
[EventCountry "CZE"]
[SourceTitle "playchess.com"]
[Source "ChessBase"]
[SourceQuality "1"]
[TimeControl "40/5400+30:1800+30"]

1. b3 {[%emt 0:01:18]} d5 {[%emt 0:00:00]} 2. Bb2 {[%emt 0:00:18]} Bg4 {[%emt 0:00:00]} 3. f3 {[%emt 0:02:43]} Bf5 {[%emt 0:04:14]} 4. e3 {[%emt 0:02:10]} e6 {[%emt 0:02:07]} 5. Ne2 {[%emt 0:02:24]} Nf6 {[%emt 0:01:39]} 6. d4 {[%emt 0:01:25]} Nbd7 {[%emt 0:03:34]} 7. Nbc3 {[%emt 0:04:12]} c5 {[%emt 0:02:16]} 8. Qd2 {[%emt 0:02:40]} Be7 {[%emt 0:01:58]} 9. O-O-O {[%emt 0:04:11]} Rc8 {[%emt 0:04:47]} 10. Kb1 {[%emt 0:03:56]} h5 {[%emt 0:03:02]} 11. dxc5 {[%emt 0:19:24]} Nxc5 {[%emt 0:06:02]} 12. Nd4 {[%emt 0:05:31]} Bg6 {[%emt 0:00:52]} 13. Bb5+ {[%emt 0:00:37]} Kf8 {[%emt 0:00:39]} 14. Bf1 {[%emt 0:10:09]} a6 {[%emt 0:01:33]} 15. e4 {[%emt 0:10:10]} dxe4 {[%emt 0:05:19]} 16. b4 {[%emt 0:03:33]} e5 {[%emt 0:08:25]} 17. bxc5 {[%emt 0:01:07]} exd4 {[%emt 0:05:58]} 18. Na4 {[%emt 0:02:20]} exf3 {[%emt 0:06:38]} 19. Qxd4 {[%emt 0:05:03]} b5 {[%emt 0:04:48]} 20. Nb6 {[%emt 0:02:48]} Bxc2+ {[%emt 0:02:53]} 21. Kxc2 {[%emt 0:00:52]} Qxb6 {[%emt 0:01:06]} 22. Kb1 {[%emt 0:00:37]} Qc6 {[%emt 0:07:45]} 23. Qf2 {[%emt 0:03:21]} Bxc5 {[%emt 0:04:28]} 24. Qxf3 {[%emt 0:00:19]} Qe4+ {[%emt 0:01:26]} 25. Bd3 {[%emt 0:01:01]} Qxf3 {[%emt 0:00:31]} 26. gxf3 {[%emt 0:00:04]} Re8 {[%emt 0:04:38]} 27. Rc1 {[%emt 0:00:25]} Bb4 {[%emt 0:02:57]} 28. Rhg1 {[%emt 0:01:14]} Rh6 {[%emt 0:02:30]} 29. Be4 {[%emt 0:00:37]} Bd6 {[%emt 0:01:29]} 30. Rg2 {[%emt 0:01:14]} Be5 {[%emt 0:00:51]} 31. Ba3+ {[%emt 0:00:58]} Kg8 {[%emt 0:00:38]} 32. Rc6 {[%emt 0:00:04]} Re6 {[%emt 0:02:59]} 33. Rc8+ {[%emt 0:00:13]} Re8 {[%emt 0:00:14]} 34. Rc6 {[%emt 0:00:13]} a5 {[%emt 0:01:20]} 35. Bc1 {[%emt 0:00:16]} Nxe4 {[%emt 0:00:58]} 36. Bxh6 {[%emt 0:01:59]} Nc3+ {[%emt 0:00:11]} 37. Kc1 {[%emt 0:01:41]} b4 {[%emt 0:00:53]} 38. Rc4 {[%emt 0:05:55]} Kh7 {[%emt 0:01:29]} 39. Bg5 {[%emt 0:00:48]} f6 {[%emt 0:02:21]} 40. Bh4 {[%emt 0:00:06]} g5 {[%emt 0:03:40]} 41. Bg3 {[%emt 0:02:01]} Bxg3 {[%emt 0:04:12]} 42. hxg3 {[%emt 0:00:09]} Re2 {[%emt 0:01:37]} 43. Rxe2 {[%emt 0:00:55]} Nxe2+ {[%emt 0:00:02]} 44. Kd2 {[%emt 0:03:46]} Nxg3 {[%emt 0:07:20]} 45. Ke1 {[%emt 0:01:36]} Kg6 {[%emt 0:01:12]} 46. Kf2 {[%emt 0:01:49]} Nf5 {[%emt 0:01:40]} 47. Rc5 {[%emt 0:01:35]} Nd4 {[%emt 0:01:41]} 48. Rd5 {[%emt 0:02:05]} Nc6 {[%emt 0:00:43]} 49. Rc5 {[%emt 0:00:15]} Nd4 {[%emt 0:00:05]} 50. Rd5 {[%emt 0:00:46]} Nc6 {[%emt 0:00:13]} 1/2-1/2

[Event "CZE-ch 2020"]
[Site "Pilsen"]
[Date "2020.08.26"]
[Round "4.29"]
[White "Hlozek, David"]
[Black "Vorisek, Jakub"]
[Result "1/2-1/2"]
[ECO "A57"]
[WhiteElo "2037"]
[BlackElo "2205"]
[Annotator "ChessBase"]
[PlyCount "62"]
[EventDate "2020.08.23"]
[EventType "swiss"]
[EventCountry "CZE"]
[SourceTitle "playchess.com"]
[Source "ChessBase"]
[SourceQuality "1"]
[TimeControl "40/5400+30:1800+30"]

1. d4 {[%emt 0:00:00]} Nf6 {[%emt 0:00:29]} 2. c4 {[%emt 0:00:00]} c5 {[%emt 0:00:35]} 3. d5 {[%emt 0:03:01]} b5 {[%emt 0:00:37]} 4. b3 {[%emt 0:03:46]} g6 {[%emt 0:04:46]} 5. Bb2 {[%emt 0:05:35]} Bg7 {[%emt 0:05:21]} 6. Nd2 {[%emt 0:06:24]} bxc4 {[%emt 0:01:22]} 7. bxc4 {[%emt 0:02:55]} O-O {[%emt 0:02:33]} 8. Ngf3 {[%emt 0:10:18]} d6 {[%emt 0:03:32]} 9. e4 {[%emt 0:05:03]} Qa5 {[%emt 0:08:21]} 10. e5 {[%emt 0:06:13]} Ng4 {[%emt 0:06:09]} 11. h3 {[%emt 0:01:21]} Nxe5 {[%emt 0:00:43]} 12. Nxe5 {[%emt 0:00:05]} dxe5 {[%emt 0:02:08]} 13. Bd3 {[%emt 0:02:29]} f5 {[%emt 0:08:24]} 14. O-O {[%emt 0:01:19]} Nd7 {[%emt 0:01:49]} 15. Nb3 {[%emt 0:03:12]} Qc7 {[%emt 0:00:20]} 16. Re1 {[%emt 0:02:55]} Ba6 {[%emt 0:01:54]} 17. Qc2 {[%emt 0:02:37]} e4 {[%emt 0:10:33]} 18. Bf1 {[%emt 0:01:54]} Ne5 {[%emt 0:15:46]} 19. Rad1 {[%emt 0:05:36]} Rfe8 {[%emt 0:05:32]} 20. Ba3 {[%emt 0:09:14]} Nd7 {[%emt 0:04:12]} 21. Qd2 {[%emt 0:03:22]} Be5 {[%emt 0:01:01]} 22. Kh1 {[%emt 0:08:23]} Rad8 {[%emt 0:00:53]} 23. g4 {[%emt 0:01:15]} fxg4 {[%emt 0:05:19]} 24. Rxe4 {[%emt 0:02:15]} Nf6 {[%emt 0:00:58]} 25. Ree1 {[%emt 0:02:44]} Bd6 {[%emt 0:00:46]} 26. Qe3 {[%emt 0:00:29]} Bc8 {[%emt 0:02:48]} 27. Bxc5 {[%emt 0:01:08]} Bxc5 {[%emt 0:01:42]} 28. Qxc5 {[%emt 0:03:15]} Qxc5 {[%emt 0:01:16]} 29. Nxc5 {[%emt 0:00:05]} e5 {[%emt 0:00:46]} 30. Ne4 {[%emt 0:02:13]} Nxe4 {[%emt 0:01:26]} 31. Rxe4 {[%emt 0:00:06]} Bf5 {[%emt 0:00:26]} 1/2-1/2